bitfinex/quotes_SOLUSD_20240809
["timestamp","ask_amount","ask_price","bid_price","bid_amount"]
[1723237380698,6.5223,153.32,153.27,6.524]
[1723237381284,6.5227,153.31,153.27,12.6856]
[1723237381471,6.5227,153.31,153.28,15.4115]
[1723237382272,28.64,153.33,153.28,15.4115]
[1723237382490,6.5235,153.29,153.28,15.4115]
[1723237382791,28.64,153.33,153.28,15.4115]
[1723237382973,6.5232,153.3,153.28,15.4115]
[1723237383374,6.5235,153.29,153.28,15.4115]
[1723237384997,28.64,153.29,153.22,21.5731]
[1723237385198,6.5248,153.26,153.22,21.5731]
[1723237385364,1.57824562,153.28,153.22,28.0995]
[1723237386572,6.5248,153.27,153.22,28.0995]
[1723237386767,0.12549,153.25,153.22,21.5731]
[1723237387072,0.12549,153.25,153.21,0.8419388]
[1723237387073,6.5265,153.22,153.21,0.8419388]
[1723237387272,8.10474562,153.22,153.21,0.8419388]
[1723237387472,8.35572562,153.22,153.21,0.8419388]
[1723237387780,8.60670562,153.22,153.21,0.8419388]
[1723237387974,0.12549,153.22,153.21,0.8419388]
[1723237388183,6.5261,153.23,153.21,0.8419388]
[1723237388573,8.10434562,153.23,153.21,0.8419388]
[1723237388871,6.5261,153.23,153.21,0.8419388]
[1723237389279,6.5265,153.22,153.21,0.8419388]
[1723237390095,6.5261,153.23,153.21,0.8419388]
[1723237393006,6.5265,153.22,153.21,0.8419388]
[1723237394388,6.77748,153.22,153.21,0.8419388]
[1723237394590,6.90297,153.22,153.21,0.8419388]
[1723237394902,8.48121562,153.22,153.21,0.8419388]
[1723237395088,8.60670562,153.22,153.21,0.8419388]
[1723237395283,53.60670562,153.22,153.21,0.8419388]
[1723237395886,6.5279,153.19,153.15,6.5287]
[1723237396396,28.89098,153.2,153.15,6.5287]
[1723237396650,0.25098,153.2,153.15,6.5287]
[1723237396793,0.25098,153.21,153.15,6.5287]
[1723237397175,8.35652562,153.21,153.16,6.5291]
[1723237397388,8.35652562,153.21,153.16,6.0291]
[1723237397588,0.12549,153.2,153.15,6.5287]
[1723237397790,0.12549,153.2,153.13,15.1765]
[1723237397791,6.5282,153.19,153.13,15.1765]
[1723237398114,6.5287,153.17,153.13,15.1765]
[1723237398305,6.5295,153.15,153.11,6.2091]
[1723237398485,1.57824562,153.14,153.1,6.5316]
[1723237399223,28.64,153.12,153.05,0.8419388]
[1723237399386,35.1717,153.1,153.05,7.3753388]
[1723237399589,28.64,153.1,153.06,6.5332]
[1723237399783,6.90767,153.11,153.06,6.5332]
[1723237400208,0.12549,153.1,153.05,0.8419388]
[1723237400393,8.23543562,153.1,153.05,7.3756388]
[1723237400798,0.37647,153.09,153.06,6.5332]
[1723237401117,0.25098,153.09,153.06,6.5332]
[1723237401411,0.12549,153.1,153.06,6.5332]
[1723237401614,0.37647,153.1,153.06,6.5332]
[1723237401812,52.03356,153.1,153.06,6.5332]
[1723237402182,52.03356,153.1,153.05,7.3756388]
[1723237402390,75.72020562,153.1,153.05,0.8419388]
[1723237403108,6.5321,153.09,153.05,0.8419388]
[1723237403285,2.08020562,153.08,153.05,0.8419388]
[1723237403612,0.50196,153.08,153.05,0.8419388]
[1723237403815,0.50196,153.08,153.01,15.3668]
[1723237403816,0.12549,153.05,152.9,27.5759]
[1723237404126,0.12549,153.05,152.94,16.3454]
[1723237404127,0.12549,153.01,152.94,16.3454]
[1723237404289,0.12549,153.0,152.94,16.3454]
[1723237404492,0.37647,153.0,152.94,16.3454]
[1723237404811,1.70373562,152.99,152.95,6.538]
[1723237405110,1.57824562,152.98,152.95,6.538]
[1723237405315,0.12549,152.99,152.94,16.3454]
[1723237405488,0.37647,152.99,152.94,16.3454]
[1723237405817,1.70373562,152.98,152.93,6.5385]
[1723237405993,0.25098,152.97,152.93,6.5385]
[1723237406602,6.5362,153.0,152.94,6.5384]
[1723237406917,0.37647,152.99,152.95,6.538]
[1723237407606,6.91287,152.99,152.94,6.5384]
[1723237407814,0.37647,152.99,152.95,6.538]
[1723237408415,6.5377,152.96,152.91,6.5393]
[1723237408732,0.37647,152.95,152.9,43.9263]
[1723237409013,0.12549,152.94,152.9,27.5759]
[1723237409189,6.5376,152.96,152.91,6.5397]
[1723237409390,0.12549,152.95,152.91,6.5397]
[1723237409589,0.12549,152.95,152.92,6.5392]
[1723237410027,0.37647,152.96,152.92,6.5392]
[1723237410190,0.37647,152.96,152.9,21.3668]
[1723237410389,0.12549,152.94,152.9,21.3668]
[1723237410628,1.57824562,152.93,152.9,6.0]
[1723237410803,0.12549,152.92,152.9,6.0]
[1723237411192,1.57824562,152.93,152.9,6.0]
[1723237411392,0.25098,152.94,152.9,12.5402]
[1723237411697,0.12549,152.94,152.9,6.0]
[1723237411995,0.12549,152.93,152.9,6.0]
[1723237412198,0.25098,152.93,152.9,6.0]
[1723237412423,1.70373562,152.93,152.9,6.0]
[1723237412716,6.5386,152.94,152.9,6.0]
[1723237412717,0.12549,152.94,152.9,6.0]
[1723237412917,0.25098,152.94,152.9,12.5398]
[1723237413290,1.82922562,152.94,152.9,6.0]
[1723237413494,0.12549,152.92,152.9,6.0]
[1723237413704,6.79048,152.92,152.9,6.0]
[1723237413894,0.25098,152.92,152.9,6.0]
[1723237414309,0.37647,152.91,152.9,6.0]
[1723237414801,0.50196,152.91,152.9,6.0]
[1723237415198,0.37647,152.91,152.9,6.0]
[1723237416217,6.5385,152.94,152.9,12.5402]
[1723237416513,0.50196,152.93,152.9,12.5402]
[1723237417616,0.37647,152.93,152.9,12.5402]
[1723237418407,6.5381,152.95,152.91,6.5397]
[1723237418712,0.25098,152.94,152.91,6.5397]
[1723237418914,0.25098,152.95,152.91,6.5397]
[1723237419139,6.66439,152.93,152.9,6.0]
[1723237419421,6.5407,152.89,152.84,6.5427]
[1723237419611,0.12549,152.88,152.85,22.8979]
[1723237419805,0.25098,152.89,152.86,6.5419]
[1723237420022,37.09549,152.92,152.85,16.3557]
[1723237420023,6.5397,152.92,152.87,6.5414]
[1723237420314,0.37647,152.91,152.88,6.541]
[1723237420696,0.37647,152.91,152.87,6.5414]
[1723237421406,6.91627,152.91,152.86,6.5418]
[1723237421613,0.37647,152.91,152.85,16.3557]
[1723237421803,0.12549,152.9,152.86,6.5417]
[1723237421999,6.91627,152.91,152.86,6.5417]
[1723237422202,6.66569,152.9,152.86,6.5417]
[1723237422395,0.12549,152.89,152.86,6.5417]
[1723237422594,0.25098,152.89,152.85,22.898]
[1723237423033,0.25098,152.89,152.86,6.5419]
[1723237423323,6.5398,152.91,152.87,6.5414]
[1723237423522,0.25098,152.9,152.86,6.5418]
[1723237423735,45.25098,152.9,152.86,6.5418]
[1723237424231,0.12549,152.9,152.85,16.3557]
[1723237424398,6.5391,152.93,152.88,6.5409]
[1723237424596,6.5391,152.93,152.89,6.5406]
[1723237425017,1.57824562,152.92,152.88,6.541]
[1723237425602,1.57824562,152.92,152.87,16.3531]
[1723237425824,6.5391,152.93,152.87,16.3531]
[1723237426231,6.5394,152.92,152.88,6.541]
[1723237426409,1.57824562,152.91,152.88,6.541]
[1723237426725,6.539,152.93,152.88,6.541]
[1723237426919,0.12549,152.94,152.87,16.3531]
[1723237427124,1.57824562,152.92,152.87,16.3531]
[1723237427313,6.5381,152.95,152.89,16.351]
[1723237427512,6.5381,152.95,152.9,6.5401]
[1723237427715,6.5381,152.95,152.91,6.5397]
[1723237427913,54.23873614,152.99,152.92,6.5391]
[1723237428217,50.9259,153.03,152.93,28.78]
[1723237428418,30.35824562,153.02,152.93,16.2024]
[1723237428607,28.78,153.0,152.93,6.5388]
[1723237428930,1.57824562,152.99,152.92,6.5874]
[1723237429137,6.5373,152.97,152.92,6.5391]
[1723237429330,6.5373,152.97,152.93,6.5388]
[1723237429503,6.537,152.98,152.91,16.3489]
[1723237429705,6.537,152.98,152.93,6.5388]
[1723237429919,1.57824562,152.97,152.93,6.5388]
[1723237430111,8.11564562,152.97,152.92,6.5393]
[1723237431305,0.12549,152.96,152.92,6.5393]
[1723237432020,6.78828,152.97,152.92,6.5393]
[1723237432698,6.78828,152.97,152.93,6.0388]
[1723237433613,0.25098,152.97,152.93,6.0388]
[1723237434330,0.25098,152.97,152.94,6.5383]
[1723237434543,0.12549,152.98,152.94,6.5383]
[1723237434705,0.25098,152.98,152.94,6.5383]
[1723237435228,6.78778,152.98,152.94,6.5383]
[1723237435528,0.12549,152.97,152.9,16.3504]
[1723237435737,1.57824562,152.96,152.9,16.3504]
[1723237436326,0.12549,152.97,152.92,16.3478]
[1723237437208,0.25098,152.98,152.94,16.3456]
[1723237437421,2.55599444,152.99,152.96,6.5376]
[1723237437715,6.5362,153.0,152.96,6.5376]
[1723237437935,6.5355,153.01,152.96,6.5376]
[1723237438318,6.5359,153.0,152.96,6.5376]
[1723237438531,6.5359,153.0,152.95,6.5379]
[1723237439330,23.28206266,153.03,152.95,28.78]
[1723237439530,1.13616266,153.03,152.99,6.5363]
[1723237439735,30.35824562,153.02,152.91,6.5417]
[1723237439930,6.5355,153.01,152.96,6.5375]
[1723237440309,6.5341,153.05,152.95,28.78]
[1723237440509,6.5342,153.04,152.98,16.3411]
[1723237440824,6.5351,153.02,152.97,6.5369]
[1723237441024,1.57824562,153.01,152.98,6.5367]
[1723237441425,6.5351,153.02,152.97,6.5371]
[1723237441664,6.5351,153.02,152.97,22.8792]
[1723237441945,1.135987,153.07,153.02,16.3367]
[1723237442128,6.5321,153.09,153.02,16.3367]
[1723237442339,6.5321,153.09,153.04,6.5341]
[1723237442642,1.1355841,153.1,152.98,6.5417]
[1723237442643,6.5338,153.05,153.0,6.5358]
[1723237442815,45.1099,153.1,152.99,28.78]
[1723237442816,6.5334,153.06,153.01,6.5353]
[1723237443013,6.533,153.07,153.02,6.5349]
[1723237443523,6.533,153.07,153.03,6.5345]
[1723237443733,1.57824562,153.06,152.99,28.78]
[1723237443939,15.6716,153.11,153.01,28.78]
[1723237444240,15.6716,153.11,153.03,28.78]
[1723237444548,6.5317,153.1,153.04,6.5339]
[1723237444711,1.57824562,153.09,153.01,28.78]
[1723237445036,15.6716,153.11,153.03,6.5345]
[1723237445037,6.5333,153.07,153.03,6.5345]
[1723237445242,0.12549,153.09,153.04,6.5342]
[1723237445536,6.5322,153.09,153.04,6.5342]
[1723237446316,1.57824562,153.08,153.03,6.5346]
[1723237446535,8.11124562,153.07,153.02,6.535]
[1723237447245,6.534,153.05,153.0,6.5359]
[1723237447416,1.57824562,153.04,153.0,6.5359]
[1723237447618,1.57824562,153.04,153.01,6.5354]
[1723237447941,6.5339,153.05,152.98,6.5417]
[1723237448119,1.57824562,153.04,152.98,6.5417]
[1723237448438,6.5334,153.06,153.01,6.5351]
[1723237448623,1.57824562,153.05,153.01,6.5351]
[1723237448824,1.57824562,153.05,153.01,6.0351]
[1723237449341,6.5329,153.08,153.03,6.5346]
[1723237449842,6.5321,153.09,153.05,6.5337]
[1723237450145,6.5321,153.09,153.01,28.78]
[1723237450433,6.5321,153.09,153.04,6.5341]
[1723237451242,15.6716,153.11,153.02,6.5347]
[1723237451541,6.5332,153.07,153.02,6.5347]
[1723237451737,15.6716,153.11,153.01,28.78]
[1723237451928,15.6716,153.11,153.05,6.5335]
[1723237452132,1.57824562,153.1,153.01,28.78]
[1723237452335,15.6716,153.11,153.01,28.78]
[1723237452644,6.5324,153.09,153.04,6.5342]
[1723237452847,1.57824562,153.08,153.04,6.5342]
[1723237453345,6.533,153.07,153.02,6.535]
[1723237453659,6.5326,153.08,153.03,6.5344]
[1723237453944,1.57824562,153.07,153.03,6.5344]
[1723237456142,8.11124562,153.07,153.03,6.5344]
[1723237456333,8.11164562,153.06,153.02,6.535]
[1723237457043,8.11164562,153.06,153.01,35.3154]
[1723237457561,6.5339,153.05,153.01,6.5354]
[1723237457736,8.11244562,153.04,152.99,28.78]
[1723237458053,8.11244562,153.04,152.98,6.5417]
[1723237458354,46.59744562,153.04,152.97,6.5371]
[1723237458553,0.25098,153.03,152.93,35.1575]
[1723237458856,6.5356,153.01,152.93,35.1575]
[1723237459167,1.57824562,153.0,152.96,6.5373]
[1723237460753,1.57824562,153.0,152.93,6.3775]
[1723237461053,6.5365,152.99,152.94,6.5381]
[1723237461361,1.57824562,152.98,152.95,6.5378]
[1723237462151,1.57824562,152.99,152.96,6.5376]
[1723237462353,1.57824562,152.98,152.96,6.5376]
[1723237462558,1.57824562,152.98,152.93,6.3775]
[1723237462731,1.57824562,152.98,152.95,6.538]
[1723237463343,1.57824562,152.97,152.92,15.5742]
[1723237463538,1.57824562,152.97,152.89,35.1575]
[1723237463732,8.11544562,152.97,152.92,6.5392]
[1723237464830,8.11544562,152.97,152.93,6.5389]
[1723237465359,8.11544562,152.97,152.92,6.5392]
[1723237465864,1.57824562,152.97,152.93,6.5389]
[1723237466046,28.78,153.02,152.96,6.5376]
[1723237466353,18.78934237,153.04,152.93,28.78]
[1723237466354,54.10354237,153.04,152.99,6.5363]
[1723237466554,6.5346,153.03,152.98,6.5367]
[1723237466942,23.90956417,153.04,152.98,6.5364]
[1723237467144,16.2392,153.04,153.01,6.5354]
[1723237467459,7.66883082,153.07,153.01,6.5351]
[1723237467664,6.5336,153.06,153.0,6.5358]
[1723237467867,45.0192,153.08,153.0,6.5358]
[1723237468042,46.1550285,153.08,153.0,6.5358]
[1723237468565,1.57824562,153.07,152.99,6.5363]
[1723237468860,0.12549,153.06,152.99,6.5363]
[1723237469045,0.50196,153.06,152.99,6.5363]
[1723237469243,0.50196,153.06,153.0,6.5358]
[1723237469430,6.5338,153.05,153.0,6.5358]
[1723237469635,6.5334,153.06,153.01,6.5354]
[1723237469855,6.533,153.07,153.02,6.535]
[1723237470052,16.2392,153.08,152.99,28.78]
[1723237470254,45.0192,153.08,152.99,28.78]
[1723237470962,6.5338,153.05,152.97,28.78]
[1723237471138,1.57824562,153.04,152.97,28.78]
[1723237471464,1.57824562,153.04,153.0,6.5355]
[1723237471960,6.5334,153.06,153.01,6.5354]
[1723237472167,6.533,153.07,153.02,6.535]
[1723237472339,8.11164562,153.06,153.01,6.5354]
[1723237472655,6.5339,153.05,153.0,6.5359]
[1723237472853,16.36469,153.08,152.99,28.78]
[1723237473056,6.5327,153.08,153.01,28.78]
[1723237473351,44.8533,153.12,153.03,6.5346]
[1723237473352,6.5329,153.07,153.03,6.5346]
[1723237473937,6.5325,153.08,153.03,6.5346]
[1723237474746,1.57824562,153.1,152.96,35.1575]
[1723237474747,6.5342,153.04,152.99,35.3162]
[1723237475059,8.11244562,153.04,152.99,35.3162]
[1723237475265,45.12549,153.07,153.0,6.5359]
[1723237475266,6.5337,153.06,153.0,6.5359]
[1723237475445,6.65839,153.08,153.02,6.5347]
[1723237475647,6.5329,153.08,153.01,28.78]
[1723237475839,6.5329,153.08,153.02,1.30682804]
[1723237476362,6.5334,153.06,153.02,6.535]
[1723237476656,0.12549,153.09,153.01,28.78]
[1723237476858,6.5339,153.05,153.0,6.5355]
[1723237477363,6.5334,153.06,153.01,6.5353]
[1723237477868,6.5334,153.06,153.02,6.535]
[1723237478059,6.533,153.07,153.02,6.535]
[1723237478261,6.5338,153.05,152.99,28.78]
[1723237478556,1.57824562,153.04,152.97,28.78]
[1723237478869,6.5346,153.03,152.97,28.78]
[1723237479058,6.5346,153.03,152.98,6.5364]
[1723237479362,6.5341,153.05,152.99,6.5363]
[1723237479541,1.57824562,153.04,152.99,6.5363]
[1723237479965,1.57824562,153.04,153.0,6.5357]
[1723237481159,1.57824562,153.04,153.01,6.5354]
[1723237481867,6.5334,153.06,153.01,6.5354]
[1723237482164,1.57824562,153.05,153.01,6.5354]
[1723237482948,1.57824562,153.04,152.97,28.78]
[1723237483158,6.5333,153.06,152.99,28.78]
[1723237483763,6.533,153.07,153.02,6.535]
[1723237484546,6.5343,153.04,152.96,6.3775]
[1723237484761,6.5343,153.04,152.97,28.78]
[1723237484963,6.5338,153.05,153.0,6.5358]
[1723237486752,6.5338,153.05,153.01,6.5354]
[1723237487660,1.57824562,153.04,152.96,6.3775]
[1723237487971,6.5356,153.01,152.96,6.5376]
[1723237488159,1.57824562,153.0,152.96,6.5376]
[1723237488347,8.11314562,153.03,152.98,6.5367]
[1723237488553,8.11314562,153.03,152.95,44.3542]
[1723237488554,6.65999,153.04,152.99,6.536]
[1723237488755,8.11294562,153.03,152.98,6.5367]
[1723237489164,6.5351,153.02,152.98,6.5367]
[1723237489361,1.57824562,153.01,152.98,6.5367]
[1723237490873,0.12549,153.04,152.99,6.5363]
[1723237491056,0.37647,153.04,152.99,6.5363]
[1723237491256,1.95471562,153.04,152.99,6.5363]
[1723237491465,6.5348,153.03,152.98,6.5366]
[1723237491685,1.57824562,153.02,152.98,6.5366]
[1723237491853,1.82922562,153.01,152.92,13.00286786]
[1723237492054,1.82922562,153.01,152.92,6.2333]
[1723237493086,8.36472562,153.01,152.96,6.5376]
[1723237493294,6.5359,153.0,152.95,6.538]
[1723237493465,1.57824562,152.99,152.95,6.538]
[1723237494678,1.57824562,152.98,152.94,6.5384]
[1723237494980,1.57824562,152.98,152.91,16.2276]
[1723237495385,6.5376,152.96,152.91,22.7673]
[1723237495574,1.57824562,152.95,152.92,6.5393]
[1723237495763,6.66269,152.97,152.92,6.5393]
[1723237495965,6.5369,152.98,152.93,6.5388]
[1723237496967,1.57824562,152.97,152.93,6.5388]
[1723237497679,8.11544562,152.97,152.92,6.5393]
[1723237498189,1.57824562,152.97,152.92,6.5393]
[1723237498366,1.57824562,152.96,152.92,6.5393]
[1723237498965,6.66279,152.97,152.92,6.5393]
[1723237499487,8.24103562,152.97,152.92,6.5393]
[1723237499786,8.24103562,152.97,152.91,6.5397]
[1723237499787,6.5376,152.96,152.91,6.5397]
[1723237499962,1.57824562,152.95,152.91,6.5397]
[1723237500157,8.11634562,152.95,152.9,6.5401]
[1723237500389,1.57824562,152.95,152.9,6.5401]
[1723237500889,1.57824562,152.94,152.9,6.5401]
[1723237501067,1.82922562,152.97,152.9,6.5401]
[1723237501268,0.12549,152.95,152.88,12.6316]
[1723237501480,28.78,152.94,152.87,6.5411]
[1723237501711,8.11724562,152.93,152.87,6.5411]
[1723237501996,1.57824562,152.92,152.87,6.5411]
[1723237502294,1.57824562,152.91,152.84,305.8479]
[1723237502891,0.25098,152.94,152.86,28.78]
[1723237503077,6.66469,152.93,152.87,6.5413]
[1723237503272,8.11774562,152.92,152.87,6.5413]
[1723237503679,0.12549,152.91,152.87,6.5413]
[1723237504078,45.0,152.95,152.88,30.08827168]
[1723237504274,44.3866,153.0,152.9,28.78]
[1723237504592,6.5367,152.99,152.9,28.78]
[1723237505094,6.5368,152.98,152.93,6.5388]
[1723237505263,6.5363,152.99,152.94,6.5384]
[1723237505569,6.5369,152.98,152.93,6.5387]
[1723237506371,6.5378,152.96,152.91,6.5394]
[1723237506571,6.5416,152.87,152.84,6.75810196]
[1723237506794,1.1,152.88,152.81,6.5437]
[1723237506990,0.12549,152.87,152.82,6.5436]
[1723237507200,28.78,152.83,152.74,0.8419388]
[1723237507392,1.95471562,152.87,152.74,0.8419388]
[1723237507393,0.25098,152.87,152.74,0.8419388]
[1723237507709,0.12549,152.81,152.74,0.8419388]
[1723237508010,28.78,152.8,152.74,0.8419388]
[1723237508180,0.50196,152.79,152.74,0.8419388]
[1723237508380,0.12549,152.78,152.74,0.8419388]
[1723237508894,29.03098,152.78,152.74,0.8419388]
[1723237509105,30.60922562,152.78,152.74,0.8419388]
[1723237509270,28.78,152.82,152.74,0.8419388]
[1723237509472,0.12549,152.8,152.74,0.8419388]
[1723237509785,8.24853562,152.8,152.74,0.8419388]
[1723237510103,0.37647,152.79,152.74,0.8419388]
[1723237510280,0.12549,152.79,152.74,37.9119388]
[1723237510487,0.12549,152.83,152.74,0.8419388]
[1723237510793,45.50196,152.83,152.74,2.15111561]
[1723237510993,0.50196,152.83,152.74,8.69771561]
[1723237511583,37.07,152.86,152.76,6.5458]
[1723237511892,37.07,152.82,152.74,7.4819388]
[1723237512075,1.57824562,152.81,152.74,7.4819388]
[1723237512282,38.77373562,152.8,152.74,7.4819388]
[1723237512483,0.12549,152.82,152.74,0.8419388]
[1723237512686,45.0,152.85,152.75,7.85542147]
[1723237512996,0.12549,152.83,152.75,6.5463]
[1723237513312,0.12549,152.83,152.75,7.85539646]
[1723237513808,88.6122,152.86,152.75,7.85539646]
[1723237513809,6.5422,152.86,152.76,6.5458]
[1723237513976,6.75565261,152.87,152.81,6.5437]
[1723237514172,6.75565261,152.87,152.8,37.07]
[1723237514173,6.539,152.93,152.83,6.5428]
[1723237514374,6.539,152.93,152.83,7.8511734]
[1723237515003,6.5398,152.91,152.82,37.07]
[1723237515303,6.539,152.93,152.82,43.6133]
[1723237515599,43.6087,152.94,152.85,6.5421]
[1723237516314,43.82444088,152.98,152.86,38.37813941]
[1723237516481,43.6062,153.0,152.9,6.5401]
[1723237516680,43.6051,153.02,152.91,1.307722]
[1723237516990,6.5357,153.01,152.92,6.5389]
[1723237517199,6.5348,153.03,152.93,7.84625524]
[1723237517383,6.5354,153.02,152.93,7.84625524]
[1723237518082,37.07,153.04,152.93,1.30755524]
[1723237518083,43.6044,153.04,152.93,1.30755524]
[1723237518296,6.5344,153.04,152.94,37.07]
[1723237518491,6.5348,153.03,152.95,1.30736063]
[1723237518809,6.534,153.05,152.96,1.30735987]
[1723237519103,6.5369,152.98,152.92,16.4733]
[1723237519301,37.07,153.02,152.92,16.4733]
[1723237519605,6.5366,152.99,152.92,16.4733]
[1723237519803,38.64824562,152.98,152.91,6.5837]
[1723237519983,37.07,152.94,152.86,16.4733]
[1723237520183,37.07,153.04,152.86,16.4733]
[1723237520184,37.07,152.92,152.86,16.4733]
[1723237520406,89.77190417,153.04,152.86,16.4733]
[1723237520407,37.07,152.94,152.86,16.4733]
[1723237520593,1.57824562,152.93,152.86,16.4733]
[1723237520905,37.19549,152.92,152.86,16.4733]
[1723237521118,1.57824562,152.91,152.86,16.4733]
[1723237521611,6.5402,152.9,152.86,16.4733]
[1723237521815,0.25098,152.93,152.85,6.4267]
[1723237522107,0.25098,152.93,152.87,6.5414]
[1723237522108,0.12549,152.93,152.87,6.5414]
[1723237522278,20.0,152.97,152.85,6.4267]
[1723237522279,37.07,152.97,152.88,1.30810276]
[1723237522482,6.5382,152.95,152.89,6.5403]
[1723237522695,6.5382,152.95,152.86,37.07]
[1723237522891,6.5382,152.95,152.89,6.5405]
[1723237523105,37.07,153.01,152.9,1.30790644]
[1723237523307,6.5365,152.99,152.91,6.5393]
[1723237523494,37.07,153.03,152.95,6.538]
[1723237523685,6.5347,153.03,152.97,6.5371]
[1723237524224,6.5342,153.05,152.98,7.84396833]
[1723237524415,6.5342,153.05,152.99,1.30710991]
[1723237524713,6.5333,153.07,152.99,1.30710991]
[1723237525284,16.7705506,153.08,153.0,37.07]
[1723237525484,16.7705506,153.08,153.01,1.30674718]
[1723237525705,16.7705506,153.08,153.02,1.30674775]
[1723237525887,10.2380506,153.08,153.03,6.5346]
[1723237526089,10.2380506,153.08,153.04,38.3766348]
[1723237526290,6.5314,153.11,153.04,53.5433]
[1723237526496,37.07,153.13,153.04,16.4733]
[1723237527888,6.5321,153.09,153.04,16.4733]
[1723237528086,6.5312,153.11,153.05,6.5337]
[1723237528718,6.5326,153.08,153.04,16.4733]
[1723237529012,6.5326,153.08,153.02,6.5349]
[1723237529218,51.532,153.1,153.03,6.5345]
[1723237529595,6.5321,153.09,153.03,6.5345]
[1723237530003,6.5321,153.09,153.04,6.5342]
[1723237530209,37.07,153.09,152.98,53.5433]
[1723237530490,6.5337,153.06,152.98,16.4733]
[1723237530711,37.19549,153.11,153.0,37.07]
[1723237530917,37.07,153.11,153.01,1.30659181]
[1723237531104,0.12549,153.1,152.99,45.0]
[1723237531291,37.07,153.09,152.98,53.5433]
[1723237531496,1.57824562,153.08,152.98,53.5433]
[1723237531698,1.57824562,153.07,152.98,53.5433]
[1723237532009,1.57824562,153.07,153.01,6.5354]
[1723237532532,37.07,153.09,153.01,6.5354]
[1723237532689,37.07,153.11,153.02,1.30683991]
[1723237532894,6.5321,153.09,153.04,6.534]
[1723237533095,37.07,153.13,153.05,6.5336]
[1723237533304,37.07,153.13,153.02,37.07]
[1723237533522,6.5321,153.09,153.04,6.5342]
[1723237533717,1.57824562,153.08,152.98,53.5433]
[1723237534013,38.64824562,153.07,152.98,23.0099]
[1723237534231,37.07,153.05,152.98,16.4733]
[1723237534525,1.70373562,153.04,152.98,23.0099]
[1723237534900,6.5348,153.03,152.98,16.4733]
[1723237535320,6.5348,153.03,152.98,23.01]
[1723237536224,6.5348,153.03,152.98,16.4733]
[1723237536732,8.11344562,153.02,152.98,16.4733]
[1723237537402,6.5352,153.02,152.98,16.4733]
[1723237537602,6.5346,153.03,152.98,16.4733]
[1723237538025,6.535,153.02,152.98,16.4733]
[1723237538533,6.5365,152.99,152.93,15.7347]
[1723237538696,1.57824562,152.98,152.93,15.7347]
[1723237539001,1.57824562,152.98,152.93,22.2732]
[1723237540026,1.57824562,152.98,152.94,6.5384]
[1723237540322,8.11504562,152.98,152.93,15.7347]
[1723237540526,1.57824562,152.98,152.93,22.2734]
[1723237541027,8.11524562,152.98,152.93,22.2734]
[1723237541226,6.5373,152.97,152.93,15.7347]
[1723237541418,37.07,152.99,152.92,16.3477]
[1723237541419,1.57824562,152.96,152.92,16.3477]
[1723237541623,1.57824562,152.95,152.92,16.3477]
[1723237541800,1.57824562,152.96,152.92,16.3477]
[1723237542005,1.57824562,152.95,152.92,16.3477]
[1723237542926,1.57824562,152.96,152.92,16.3477]
[1723237543133,1.57824562,152.95,152.92,16.3477]
[1723237543425,0.12549,153.01,152.93,1.30776567]
[1723237543605,45.50196,153.01,152.96,6.5375]
[1723237544016,52.03756,153.01,152.96,6.5375]
[1723237544409,0.25098,153.01,152.97,6.537]
[1723237544622,0.12549,153.02,152.97,6.537]
[1723237544827,6.91157,153.02,152.97,6.537]
[1723237545844,6.5355,153.01,152.96,6.5374]
[1723237546006,0.12549,153.01,152.96,6.5374]
[1723237546206,6.91157,153.02,152.96,6.5374]